fUSD/lending_fUSD_20260519
["ID","MTS","AMOUNT","RATE_DAILY","PERIOD"]
[422612568,1779151853000,-151.0,0.00038831,37]
[422612563,1779151853000,-174.61919141,0.00038831,37]
[422612564,1779151853000,-174.61919141,0.00038831,37]
[422612567,1779151853000,-716.97946142,0.00038831,37]
[422612566,1779151853000,-1000.0,0.00038831,37]
[422612569,1779151853000,-201.45250632,0.0003884,30]
[422612570,1779151853000,-305.15456273,0.00038845,7]
[422612573,1779151853000,-500.0,0.0003885,7]
[422612572,1779151853000,-500.0,0.0003885,7]
[422612571,1779151853000,-500.0,0.0003885,7]
[422612574,1779151853000,-610.82,0.0003885,7]
[422612575,1779151853000,-500.0,0.0003885,7]
[422612542,1779151853000,-151.0,0.0003883,37]
[422612557,1779151853000,-200.0,0.00038831,37]
[422612540,1779151853000,-428.15185578,0.0003883,37]
[422612527,1779151853000,-292.398888,0.000388,43]
[422612541,1779151853000,-181.08010149,0.0003883,37]
[422612565,1779151853000,-152.0,0.00038831,37]
[422612525,1779151853000,-1000.0,0.00038799,43]
[422612524,1779151853000,-1000.0,0.00038799,28]
[422612521,1779151853000,-151.0,0.00038799,30]
[422612520,1779151853000,-1000.0,0.00038799,30]
[422612522,1779151853000,-1000.0,0.00038799,16]
[422612523,1779151853000,-1000.0,0.00038799,39]
[422612526,1779151853000,-22046.0,0.000388,30]
[422612531,1779151853000,-200.79,0.000388,16]
[422612528,1779151853000,-230.9,0.000388,30]
[422612532,1779151853000,-1500.0,0.000388,28]
[422612529,1779151853000,-200.3,0.000388,30]
[422612543,1779151853000,-191.87295522,0.0003883,37]
[422612530,1779151853000,-310.971875,0.000388,43]
[422612533,1779151853000,-994.596,0.00038826,30]
[422612535,1779151853000,-500.0,0.0003883,37]
[422612534,1779151853000,-1000.0,0.00038829,37]
[422612536,1779151853000,-623.58710448,0.0003883,37]
[422612537,1779151853000,-181.08010149,0.0003883,37]
[422612550,1779151853000,-1000.0,0.0003883,6]
[422612549,1779151853000,-151.0,0.0003883,37]
[422612539,1779151853000,-200.0,0.0003883,37]
[422612545,1779151853000,-181.08010149,0.0003883,37]
[422612548,1779151853000,-1000.0,0.0003883,37]
[422612547,1779151853000,-152.0,0.0003883,37]
[422612546,1779151853000,-181.08010149,0.0003883,37]
[422612538,1779151853000,-500.0,0.0003883,37]
[422612576,1779151853000,-500.0,0.0003885,7]
[422612630,1779151853000,-15872.99174493,0.00039061,2]
[422612584,1779151853000,-500.0,0.0003885,7]
[422612608,1779151853000,-306.187692,0.00038867,44]
[422612615,1779151853000,-7994.86625844,0.00038972,2]
[422612614,1779151853000,-398.98,0.00038956,120]
[422612609,1779151853000,-1000.0,0.00038899,18]
[422612613,1779151853000,-1000.0,0.00038953,90]
[422612610,1779151853000,-152.0,0.000389,120]
[422612611,1779151853000,-5950.58,0.000389,14]
[422612612,1779151853000,-2000.0,0.000389,7]
[422612618,1779151853000,-1014.57559973,0.00038974,2]
[422612617,1779151853000,-242.46497116,0.00038974,2]
[422612621,1779151853000,-1000.0,0.00038999,34]
[422612620,1779151853000,-1000.0,0.00038999,4]
[422612616,1779151853000,-3121.28983754,0.00038974,2]
[422612623,1779151853000,-1530.7660243,0.00039007,120]
[422612624,1779151853000,-157.8082295,0.00039011,2]
[422612625,1779151853000,-1000.0,0.00039015,14]
[422612627,1779151853000,-1100.0,0.00039028,60]
[422612629,1779151853000,-398.98,0.00039056,120]
[422612632,1779151853000,-151.0,0.00039072,14]
[422612626,1779151853000,-1000.0,0.00039017,10]
[422612628,1779151853000,-500.0,0.00039028,60]
[422612631,1779151853000,-1814070.6788,0.00039061,30]
[422612634,1779151853000,-300.0,0.00039073,10]
[422612635,1779151853000,-300.0,0.00039073,10]
[422612633,1779151853000,-300.0,0.00039073,10]
[422612578,1779151853000,-500.0,0.0003885,7]
[422612622,1779151853000,-1000.0,0.00038999,40]
[422612607,1779151853000,-398.98,0.00038856,120]
[422612619,1779151853000,-1000.0,0.00038999,5]
[422612604,1779151853000,-500.0,0.0003885,7]
[422612581,1779151853000,-500.0,0.0003885,7]
[422612606,1779151853000,-481.73,0.0003885,7]
[422612577,1779151853000,-500.0,0.0003885,7]
[422612579,1779151853000,-500.0,0.0003885,7]
[422612587,1779151853000,-500.0,0.0003885,7]
[422612582,1779151853000,-500.0,0.0003885,7]
[422612586,1779151853000,-500.0,0.0003885,7]
[422612585,1779151853000,-500.0,0.0003885,7]
[422612583,1779151853000,-500.0,0.0003885,7]
[422612588,1779151853000,-500.0,0.0003885,7]
[422612590,1779151853000,-500.0,0.0003885,7]
[422612601,1779151853000,-500.0,0.0003885,7]
[422612600,1779151853000,-500.0,0.0003885,7]
[422612580,1779151853000,-500.0,0.0003885,7]
[422612603,1779151853000,-500.0,0.0003885,7]
[422612602,1779151853000,-500.0,0.0003885,7]
[422612605,1779151853000,-500.0,0.0003885,7]
[422612594,1779151853000,-500.0,0.0003885,7]
[422612596,1779151853000,-500.0,0.0003885,7]
[422612595,1779151853000,-500.0,0.0003885,7]
[422612597,1779151853000,-500.0,0.0003885,7]
[422612599,1779151853000,-500.0,0.0003885,7]
[422612593,1779151853000,-500.0,0.0003885,7]
[422612598,1779151853000,-500.0,0.0003885,7]
[422612591,1779151853000,-500.0,0.0003885,7]
[422612589,1779151853000,-500.0,0.0003885,7]
[422612592,1779151853000,-500.0,0.0003885,7]
[422612647,1779151854000,-453.1992022,0.00013698,2]
[422612655,1779151854000,-32404.32880235,0.00027397,10]
[422612654,1779151854000,-772.5022051,0.00027397,10]
[422612657,1779151854000,-300.0,0.00036366,2]
[422612656,1779151854000,-300.75053335,0.00036366,2]
[422612653,1779151854000,-823.50899255,0.00027397,10]
[422612658,1779151854000,-344.18013641,0.00036366,2]
[422612652,1779151854000,-239.75323326,0.00018368,2]
[422612650,1779151854000,-1847.30567479,0.00039074,68]
[422612646,1779151854000,-2257.08759166,0.00039074,68]
[422612645,1779151854000,-289.11111019,0.00039074,68]
[422612642,1779151854000,-300.0,0.00039074,10]
[422612649,1779151854000,-38841.26742005,0.00039074,68]
[422612651,1779151854000,-32052.07979357,0.00039074,68]
[422612643,1779151854000,-300.0,0.00039074,10]
[422612644,1779151854000,-4558616.56142678,0.00039074,68]
[422612641,1779151854000,-300.0,0.00039074,10]
[422612638,1779151854000,-266.74502178,0.00039074,120]
[422612637,1779151854000,-666.0,0.00039073,30]
[422612640,1779151854000,-300.0,0.00039074,10]
[422612636,1779151854000,-300.0,0.00039073,10]
[422612639,1779151854000,-213576.37086958,0.00039074,37]
[422612660,1779151854000,-2236001.80288804,0.00039074,68]
[422612648,1779151854000,-1013.18888039,0.00039074,68]
[422612662,1779151854000,-781.06101906,0.00039074,68]
[422612670,1779151854000,-288.0,0.00029105,10]
[422612668,1779151854000,-8943.78386462,0.00039074,68]
[422612661,1779151854000,-93728.39999996,0.00039074,68]
[422612680,1779151854000,-6013.82102283,0.00029721,2]
[422612678,1779151854000,-158.62,0.00028676,7]
[422612683,1779151854000,-461.12768309,0.00036366,2]
[422612684,1779151854000,-722.22015123,0.00039074,68]
[422612685,1779151854000,-5403.69552784,0.00039074,68]
[422612679,1779151854000,-158.62,0.00028722,30]
[422612681,1779151854000,-1354.57639,0.00029721,2]
[422612677,1779151854000,-208.61,0.0002863,2]
[422612686,1779151854000,-8780.14794106,0.00039074,68]
[422612676,1779151854000,-158.62,0.0002863,2]
[422612682,1779151854000,-824.75309461,0.00029721,2]
[422612674,1779151854000,-321.36,0.00016438,2]
[422612659,1779151854000,-248.0,0.000375,120]
[422612663,1779151854000,-953.06151193,0.00039074,68]
[422612667,1779151854000,-8947.21879473,0.00039074,68]
[422612666,1779151854000,-8823.24626398,0.00039074,68]
[422612665,1779151854000,-485.74441047,0.00039074,68]
[422612669,1779151854000,-9077.54866152,0.00039074,68]
[422612671,1779151854000,-527.20076075,0.00036366,2]
[422612672,1779151854000,-6668.22848306,0.00039074,68]
[422612673,1779151854000,-12746.15376665,0.00039074,68]
[422612664,1779151854000,-293.6951951,0.00039074,68]
[422612675,1779151854000,-214.24,0.00016438,2]
[422612687,1779151867000,-198.39535058,0.00018,2]
[422612695,1779152571000,161.66,9.509e-05,2]
[422612694,1779152571000,161.66,8.672e-05,2]
[422612693,1779152571000,161.66,7.836e-05,2]
[422612696,1779152690000,10000.0,0.00030137,120]
[422612697,1779152713000,897.52,0.00030137,120]
[422612700,1779152814000,217.68,0.000285,120]
[422612723,1779153032000,-603.84235597,0.000107,2]
[422612736,1779153032000,-299.99,0.00012087,2]
[422612737,1779153032000,-150.99,0.00012087,2]
[422612735,1779153032000,-2654.91,0.00012087,2]
[422612734,1779153032000,-161.66,0.00012019,2]
[422612733,1779153032000,-886.189861,0.000119,2]
[422612731,1779153032000,-478.50807902,0.000119,2]
[422612732,1779153032000,-457.18949842,0.000119,2]
[422612730,1779153032000,-12459.82282015,0.000119,2]
[422612729,1779153032000,-17198.57241436,0.000119,2]
[422612728,1779153032000,-3095.62127914,0.000119,2]
[422612726,1779153032000,-250.0,0.0001138,2]
[422612727,1779153032000,-255.0,0.00011737,2]
[422612724,1779153032000,-5970.9016132,0.000107,2]
[422612739,1779153032000,-1145.79,0.00012575,2]
[422612722,1779153032000,-351.5299975,0.000107,2]
[422612708,1779153032000,-250.0,0.00010473,2]
[422612721,1779153032000,-716.88532856,0.000107,2]
[422612738,1779153032000,-150.0,0.00012274,2]
[422612707,1779153032000,-215.0,0.00010402,2]
[422612709,1779153032000,-785.74202032,0.000106,2]
[422612710,1779153032000,-255.07027277,0.0001061,2]
[422612712,1779153032000,-1200.0,0.00010699,2]
[422612715,1779153032000,-1848.08924005,0.000107,2]
[422612725,1779153032000,-161.66,0.00011182,2]
[422612713,1779153032000,-300.0,0.00010699,2]
[422612716,1779153032000,-440.0,0.000107,2]
[422612711,1779153032000,-150.0,0.00010699,2]
[422612717,1779153032000,-116150.30893166,0.000107,2]
[422612718,1779153032000,-13203.27734614,0.000107,2]
[422612705,1779153032000,-591.491759,0.00010293,2]
[422612719,1779153032000,-6226.43661,0.000107,2]
[422612714,1779153032000,-300.0,0.00010699,2]
[422612740,1779153032000,-13939.78,0.0001262,2]
[422612706,1779153032000,-161.66,0.00010346,2]
[422612742,1779153032000,-161.66,0.00012855,2]
[422612762,1779153032000,-150.0,0.00013553,2]
[422612764,1779153032000,-150.0,0.00013578,2]
[422612766,1779153032000,-150.0,0.00013581,2]
[422612765,1779153032000,-163.01848364,0.00013578,2]
[422612767,1779153032000,-200.0,0.00013591,2]
[422612768,1779153032000,-150.0,0.00013591,2]
[422612773,1779153032000,-150.0,0.00013624,2]
[422612769,1779153032000,-163.01848364,0.00013594,2]
[422612771,1779153032000,-163.01848364,0.00013609,2]
[422612770,1779153032000,-150.0,0.00013595,2]
[422612774,1779153032000,-163.01848364,0.00013624,2]
[422612772,1779153032000,-150.0,0.00013618,2]
[422612776,1779153032000,-150.0,0.00013643,2]
[422612775,1779153032000,-163.01848364,0.00013639,2]
[422612741,1779153032000,-150.0,0.00012673,2]
[422612763,1779153032000,-163.01848364,0.00013563,2]
[422612760,1779153032000,-150.0,0.00013541,2]
[422612720,1779153032000,-1226.08351096,0.000107,2]
[422612758,1779153032000,-163.01848364,0.00013533,2]
[422612746,1779153032000,-150.0,0.00013488,2]
[422612755,1779153032000,-163.01848364,0.00013503,2]
[422612745,1779153032000,-150.0,0.00013488,2]
[422612743,1779153032000,-150.0,0.00013488,2]
[422612744,1779153032000,-150.0,0.00013488,2]
[422612750,1779153032000,-150.0,0.00013488,2]
[422612749,1779153032000,-150.0,0.00013488,2]
[422612748,1779153032000,-150.0,0.00013488,2]
[422612747,1779153032000,-150.0,0.00013488,2]
[422612751,1779153032000,-150.0,0.00013488,2]
[422612753,1779153032000,-202.77329721,0.00013488,2]
[422612756,1779153032000,-163.01848364,0.00013518,2]
[422612761,1779153032000,-163.01848364,0.00013548,2]
[422612754,1779153032000,-150.0,0.00013488,2]
[422612759,1779153032000,-150.0,0.00013539,2]
[422612757,1779153032000,-150.0,0.00013533,2]
[422612752,1779153032000,-163.01848364,0.00013488,2]
[422612787,1779153033000,-150.0,0.00013694,2]
[422612793,1779153033000,-496.30445522,0.00013696,2]
[422612794,1779153033000,-576.71158249,0.00013696,2]
[422612792,1779153033000,-576.71158249,0.00013696,2]
[422612791,1779153033000,-500.89427333,0.00013696,2]
[422612790,1779153033000,-500.0,0.00013696,2]
[422612789,1779153033000,-500.0,0.00013696,2]
[422612785,1779153033000,-163.01848364,0.00013684,2]
[422612777,1779153033000,-150.0,0.00013648,2]
[422612778,1779153033000,-8633.33,0.00013654,2]
[422612781,1779153033000,-163.01848364,0.00013669,2]
[422612783,1779153033000,-150.0,0.00013675,2]
[422612786,1779153033000,-161.66,0.00013692,2]
[422612782,1779153033000,-250.0,0.0001367,2]
[422612780,1779153033000,-150.0,0.00013669,2]
[422612779,1779153033000,-163.01848364,0.00013654,2]
[422612796,1779153033000,-576.71158249,0.00013696,2]
[422612784,1779153033000,-150.0,0.00013683,2]
[422612795,1779153033000,-500.0,0.00013696,2]
[422612788,1779153033000,-185.59282774,0.00013696,2]
[422612798,1779153033000,-184.51835122,0.00013696,2]
[422612797,1779153033000,-500.0,0.00013696,2]
[422612816,1779153033000,-425.21361278,0.00013696,2]
[422612817,1779153033000,-247.40574175,0.00013696,2]
[422612813,1779153033000,-576.71158249,0.00013696,2]
[422612814,1779153033000,-576.71158249,0.00013696,2]
[422612811,1779153033000,-170.03552685,0.00013696,2]
[422612808,1779153033000,-576.71158249,0.00013696,2]
[422612812,1779153033000,-406.67605564,0.00013696,2]
[422612810,1779153033000,-576.71158249,0.00013696,2]
[422612806,1779153033000,-576.71158249,0.00013696,2]
[422612815,1779153033000,-151.49796971,0.00013696,2]
[422612807,1779153033000,-576.71158249,0.00013696,2]
[422612804,1779153033000,-576.71158249,0.00013696,2]
[422612805,1779153033000,-576.71158249,0.00013696,2]
[422612803,1779153033000,-576.71158249,0.00013696,2]
[422612801,1779153033000,-576.71158249,0.00013696,2]
[422612802,1779153033000,-576.71158249,0.00013696,2]
[422612800,1779153033000,-576.71158249,0.00013696,2]
[422612809,1779153033000,-576.71158249,0.00013696,2]
[422612799,1779153033000,-576.71158249,0.00013696,2]
[422612841,1779153038000,-576.71158249,0.00013696,2]
[422612840,1779153038000,-576.71158249,0.00013696,2]
[422612842,1779153038000,-576.71158249,0.00013696,2]
[422612843,1779153038000,-440.67251419,0.00013696,2]
[422612844,1779153038000,-136.0390683,0.00013696,2]
[422612845,1779153038000,-576.71158249,0.00013696,2]
[422612850,1779153038000,-338.79701936,0.00013696,2]
[422612848,1779153038000,-576.71158249,0.00013696,2]
[422612849,1779153038000,-576.71158249,0.00013696,2]
[422612846,1779153038000,-576.71158249,0.00013696,2]
[422612851,1779153038000,-237.91456313,0.00013696,2]
[422612839,1779153038000,-576.71158249,0.00013696,2]
[422612853,1779153038000,-576.71158249,0.00013696,2]
[422612847,1779153038000,-576.71158249,0.00013696,2]
[422612838,1779153038000,-576.71158249,0.00013696,2]
[422612829,1779153038000,-576.71158249,0.00013696,2]
[422612835,1779153038000,-576.71158249,0.00013696,2]
[422612833,1779153038000,-207.82610994,0.00013696,2]
[422612836,1779153038000,-567.56344072,0.00013696,2]
[422612834,1779153038000,-368.88547255,0.00013696,2]
[422612832,1779153038000,-132.0565498,0.00013696,2]
[422612831,1779153038000,-444.65503269,0.00013696,2]
[422612828,1779153038000,-576.71158249,0.00013696,2]
[422612830,1779153038000,-576.71158249,0.00013696,2]
[422612825,1779153038000,-576.71158249,0.00013696,2]
[422612827,1779153038000,-576.71158249,0.00013696,2]
[422612823,1779153038000,-329.30584074,0.00013696,2]
[422612826,1779153038000,-576.71158249,0.00013696,2]
[422612824,1779153038000,-576.71158249,0.00013696,2]
[422612852,1779153038000,-576.71158249,0.00013696,2]
[422612837,1779153038000,-9.14814177,0.00013696,2]
[422612854,1779153038000,-185.60972189,0.00013696,2]
[422612856,1779153038000,-576.71158249,0.00013696,2]
[422612862,1779153038000,-500.0,0.00013698,2]
[422612884,1779153038000,-500.0,0.00013698,2]
[422612887,1779153038000,-500.0,0.00013698,2]
[422612885,1779153038000,-500.0,0.00013698,2]
[422612882,1779153038000,-500.0,0.00013698,2]
[422612883,1779153038000,-500.0,0.00013698,2]
[422612881,1779153038000,-500.0,0.00013698,2]
[422612879,1779153038000,-500.0,0.00013698,2]
[422612880,1779153038000,-500.0,0.00013698,2]
[422612878,1779153038000,-500.0,0.00013698,2]
[422612873,1779153038000,-500.0,0.00013698,2]
[422612871,1779153038000,-500.0,0.00013698,2]
[422612870,1779153038000,-500.0,0.00013698,2]
[422612872,1779153038000,-500.0,0.00013698,2]
[422612869,1779153038000,-500.0,0.00013698,2]
[422612876,1779153038000,-500.0,0.00013698,2]
[422612886,1779153038000,-500.0,0.00013698,2]
[422612874,1779153038000,-500.0,0.00013698,2]
[422612877,1779153038000,-500.0,0.00013698,2]
[422612863,1779153038000,-500.0,0.00013698,2]
[422612858,1779153038000,-324.54212307,0.00013696,2]
[422612861,1779153038000,-576.71158249,0.00013696,2]
[422612855,1779153038000,-391.1018606,0.00013696,2]
[422612857,1779153038000,-576.71158249,0.00013696,2]
[422612864,1779153038000,-500.0,0.00013698,2]
[422612859,1779153038000,-252.16945942,0.00013696,2]
[422612865,1779153038000,-500.0,0.00013698,2]
[422612866,1779153038000,-500.0,0.00013698,2]
[422612868,1779153038000,-505.39999791,0.00013698,2]
[422612867,1779153038000,-500.0,0.00013698,2]
[422612860,1779153038000,-576.71158249,0.00013696,2]
[422612875,1779153038000,-500.0,0.00013698,2]
[422612928,1779153039000,-150.0,0.00013896,2]
[422612926,1779153039000,-21.76343314,0.00013881,2]
[422612927,1779153039000,-141.2550505,0.00013881,2]
[422612924,1779153039000,-163.01848364,0.00013866,2]
[422612920,1779153039000,-11.77794961,0.00013851,2]
[422612923,1779153039000,-150.0,0.00013862,2]
[422612919,1779153039000,-151.24053403,0.00013851,2]
[422612915,1779153039000,-163.01848364,0.00013821,2]
[422612929,1779153039000,-163.01848364,0.00013896,2]
[422612918,1779153039000,-150.0,0.00013851,2]
[422612925,1779153039000,-150.0,0.00013879,2]
[422612934,1779153039000,-150.0,0.00013942,2]
[422612941,1779153039000,-163.01848364,0.00013972,2]
[422612931,1779153039000,-163.01848364,0.00013912,2]
[422612932,1779153039000,-150.0,0.00013916,2]
[422612933,1779153039000,-163.01848364,0.00013927,2]
[422612946,1779153039000,-163.01848364,0.00014002,2]
[422612936,1779153039000,-150.0,0.00013944,2]
[422612935,1779153039000,-163.01848364,0.00013942,2]
[422612942,1779153039000,-150.0,0.00013987,2]
[422612940,1779153039000,-150.0,0.00013969,2]
[422612947,1779153039000,-150.0,0.00014004,2]
[422612938,1779153039000,-150.0,0.00013956,2]
[422612939,1779153039000,-163.01848364,0.00013957,2]
[422612922,1779153039000,-150.0,0.00013862,2]
[422612930,1779153039000,-150.0,0.00013901,2]
[422612921,1779153039000,-150.0,0.00013862,2]
[422612900,1779153039000,-150.0,0.00013746,2]
[422612916,1779153039000,-163.01848364,0.00013836,2]
[422612890,1779153039000,-500.0,0.00013698,2]
[422612888,1779153039000,-500.0,0.00013698,2]
[422612889,1779153039000,-500.0,0.00013698,2]
[422612891,1779153039000,-500.0,0.00013698,2]
[422612892,1779153039000,-163.01848364,0.000137,2]
[422612893,1779153039000,-150.0,0.00013702,2]
[422612895,1779153039000,-163.01848364,0.00013715,2]
[422612894,1779153039000,-150.0,0.00013715,2]
[422612896,1779153039000,-500.0,0.00013721,2]
[422612898,1779153039000,-163.42,0.0001373,2]
[422612899,1779153039000,-163.01848364,0.00013745,2]
[422612902,1779153039000,-150.0,0.00013748,2]
[422612917,1779153039000,-150.0,0.00013849,2]
[422612944,1779153039000,-963.84361474,0.00014,2]
[422612903,1779153039000,-150.0,0.00013755,2]
[422612904,1779153039000,-150.0,0.0001376,2]
[422612906,1779153039000,-150.0,0.00013769,2]
[422612907,1779153039000,-163.01848364,0.00013775,2]
[422612905,1779153039000,-163.01848364,0.0001376,2]
[422612908,1779153039000,-150.0,0.00013785,2]
[422612911,1779153039000,-150.0,0.00013806,2]
[422612912,1779153039000,-163.01848364,0.00013806,2]
[422612909,1779153039000,-163.01848364,0.0001379,2]
[422612910,1779153039000,-150.0,0.00013798,2]
[422612913,1779153039000,-150.0,0.00013809,2]
[422612914,1779153039000,-150.0,0.00013813,2]
[422612897,1779153039000,-163.01848364,0.0001373,2]
[422612945,1779153039000,-5.85430777,0.00014,2]
[422612937,1779153039000,-150.0,0.00013953,2]
[422612949,1779153039000,-163.01848364,0.00014017,2]
[422612984,1779153039000,-150.0,0.00014211,2]
[422612977,1779153039000,-163.01848364,0.00014169,2]
[422612978,1779153039000,-150.0,0.00014183,2]
[422612979,1779153039000,-163.01848364,0.00014184,2]
[422612980,1779153039000,-163.01848364,0.00014199,2]
[422612981,1779153039000,-150.0,0.00014204,2]
[422612986,1779153039000,-163.01848364,0.00014214,2]
[422612996,1779153039000,-163.01848364,0.00014275,2]
[422612985,1779153039000,-150.0,0.00014214,2]
[422612991,1779153039000,-163.01848364,0.00014245,2]
[422612988,1779153039000,-150.0,0.00014237,2]
[422612989,1779153039000,-150.0,0.00014237,2]
[422612983,1779153039000,-1837.69346292,0.0001421,7]
[422612993,1779153039000,-163.01848364,0.0001426,2]
[422612994,1779153039000,-150.0,0.00014263,2]
[422612995,1779153039000,-150.0,0.0001427,2]
[422612992,1779153039000,-150.0,0.0001426,2]
[422612998,1779153039000,-150.0,0.00014291,2]
[422612997,1779153039000,-163.01848364,0.0001429,2]
[422612999,1779153039000,-150.0,0.00014305,2]
[422613000,1779153039000,-163.01848364,0.00014305,2]
[422613001,1779153039000,-150.0,0.00014315,2]
[422613003,1779153039000,-150.0,0.00014331,2]
[422613002,1779153039000,-163.01848364,0.0001432,2]
[422613004,1779153039000,-150.0,0.00014335,2]
[422612943,1779153039000,-163.01848364,0.00013987,2]
[422612990,1779153039000,-150.0,0.00014237,2]
[422612976,1779153039000,-150.0,0.00014169,2]
[422612987,1779153039000,-163.01848364,0.00014229,2]
[422612975,1779153039000,-686.99785739,0.00014167,2]
[422612948,1779153039000,-150.0,0.00014009,2]
[422612982,1779153039000,-472.89669169,0.0001421,7]
[422612951,1779153039000,-150.0,0.00014033,2]
[422612950,1779153039000,-150.0,0.00014023,2]
[422612954,1779153039000,-150.0,0.0001405,2]
[422612953,1779153039000,-163.01848364,0.00014048,2]
[422613005,1779153039000,-163.01848364,0.00014335,2]
[422612955,1779153039000,-150.0,0.00014056,2]
[422612952,1779153039000,-163.01848364,0.00014033,2]
[422612956,1779153039000,-187.34022958,0.00014056,2]
[422612958,1779153039000,-150.0,0.00014074,2]
[422612959,1779153039000,-150.0,0.00014076,2]
[422612960,1779153039000,-150.0,0.00014078,2]
[422612962,1779153039000,-163.01848364,0.00014093,2]
[422612957,1779153039000,-163.01848364,0.00014063,2]
[422612973,1779153039000,-244.54,0.00014167,2]
[422612972,1779153039000,-150.0,0.00014159,2]
[422612968,1779153039000,-163.01848364,0.00014139,2]
[422612964,1779153039000,-163.01848364,0.00014108,2]
[422612967,1779153039000,-150.0,0.0001413,2]
[422612974,1779153039000,-919.06214261,0.00014167,2]
[422612965,1779153039000,-150.0,0.00014123,2]
[422612966,1779153039000,-163.01848364,0.00014123,2]
[422612963,1779153039000,-150.0,0.00014108,2]
[422612969,1779153039000,-150.0,0.00014139,2]
[422612971,1779153039000,-163.01848364,0.00014154,2]
[422612961,1779153039000,-163.01848364,0.00014078,2]
[422612970,1779153039000,-150.0,0.00014143,2]
[422613052,1779153040000,-150.0,0.00014558,2]
[422613051,1779153040000,-163.01848364,0.00014547,2]
[422613050,1779153040000,-163.01848364,0.00014532,2]
[422613043,1779153040000,-150.0,0.00014505,2]
[422613041,1779153040000,-1370.74,0.00014504,2]
[422613044,1779153040000,-163.01848364,0.00014517,2]
[422613038,1779153040000,-9999.99,0.00014504,2]
[422613039,1779153040000,-7209.11,0.00014504,2]
[422613042,1779153040000,-14895.26,0.00014504,2]
[422613040,1779153040000,-999.99,0.00014504,2]
[422613048,1779153040000,-150.0,0.0001453,2]
[422613046,1779153040000,-150.0,0.00014521,2]
[422613059,1779153040000,-150.0,0.00014595,2]
[422613076,1779153040000,-150.0,0.00014676,2]
[422613056,1779153040000,-163.01848364,0.00014578,2]
[422613061,1779153040000,-150.0,0.00014612,2]
[422613054,1779153040000,-150.0,0.00014573,2]
[422613060,1779153040000,-163.01848364,0.00014608,2]
[422613058,1779153040000,-163.01848364,0.00014593,2]
[422613053,1779153040000,-163.01848364,0.00014562,2]
[422613055,1779153040000,-150.0,0.00014578,2]
[422613063,1779153040000,-150.0,0.00014612,2]
[422613073,1779153040000,-150.0,0.00014665,2]
[422613062,1779153040000,-150.0,0.00014612,2]
[422613074,1779153040000,-150.0,0.00014668,2]
[422613075,1779153040000,-163.01848364,0.00014668,2]
[422613045,1779153040000,-150.0,0.00014518,2]
[422613049,1779153040000,-150.0,0.00014532,2]
[422613037,1779153040000,-24999.99,0.00014504,2]
[422613009,1779153040000,-163.01848364,0.00014366,2]
[422613036,1779153040000,-9999.99,0.00014504,2]
[422613010,1779153040000,-150.0,0.00014366,2]
[422613064,1779153040000,-150.0,0.00014623,2]
[422613008,1779153040000,-163.01848364,0.00014351,2]
[422613006,1779153040000,-150.0,0.00014344,2]
[422613007,1779153040000,-150.0,0.00014351,2]
[422613012,1779153040000,-150.0,0.00014396,2]
[422613022,1779153040000,-150.0,0.00014441,2]
[422613011,1779153040000,-163.01848364,0.00014381,2]
[422613015,1779153040000,-150.0,0.000144,2]
[422613017,1779153040000,-1575.2234,0.00014404,2]
[422613014,1779153040000,-150.0,0.00014398,2]
[422613021,1779153040000,-163.01848364,0.00014426,2]